[Event "Portuguese-ch U14-20 2022"]
[Site "Fatima"]
[Date "2022.04.13"]
[Round "6.26"]
[White "Sarabando, Rodrigo Andias"]
[Black "De Medeiros, Sara Soares"]
[Result "1/2-1/2"]
[ECO "E06"]
[WhiteElo "1897"]
[BlackElo "1828"]
[Annotator "NA RC"]
[PlyCount "135"]
[EventDate "2022.04.10"]
[EventType "swiss"]
[EventCountry "POR"]
[SourceTitle "playchess.com"]
[Source "ChessBase"]
[SourceQuality "1"]
[TimeControl "5400+30"]

1. d4 d5 2. c4 e6 3. Nf3 Nf6 4. g3 Be7 5. Bg2 O-O 6. O-O dxc4 7. Ne5 Nc6 8. Nxc6 bxc6 9. Na3 Bxa3 10. bxa3 Ba6 11. Qd2 Rb8 12. Qa5 Rb6 (12... Qxd4 $2 13. Be3 Qd6 14. Qxa6 $18) 13. a4 Qd6 14. a3 Rfb8 15. e4 Qd7 16. Rd1 Bb7 17. Bf4 Rd8 18. Rac1 Ba6 19. h3 h6 20. Be3 Qc8 21. Bf4 Qd7 22. Qe5 Ne8 23. Be3 Rb3 (23... Nd6 $11) 24. Qa5 Qc8 25. Rc3 Qb7 26. Rdc1 Nf6 27. Bf3 Rb8 28. Bf4 Rc8 29. Kg2 $1 $11 {keeps the balance.} Rb2 30. R1c2 Rb3 31. g4 {[#]} Qb6 $1 32. Qc5 Re8 33. Qe5 Nd7 34. Qxc7 Qxc7 35. Bxc7 Nb6 36. Bxb6 Rxc3 37. Rxc3 axb6 38. d5 cxd5 39. exd5 Rd8 40. dxe6 fxe6 41. Be2 Rc8 42. Kf3 Kf7 43. Ke4 Ke7 44. f4 Rc5 45. h4 Ra5 46. Bd1 Bb7+ 47. Ke3 Bd5 48. Kd4 Kd6 49. g5 Ke7 ({Better is} 49... Ra8 $17 50. gxh6 gxh6) 50. Re3 Kf7 51. Bc2 Kf8 (51... Rc5 $11 {remains equal.}) 52. Re5 Kf7 53. f5 hxg5 54. fxe6+ Bxe6 55. Rxa5 bxa5 $11 56. hxg5 Ke7 57. Kc5 Kd7 58. Be4 Kc7 59. Bc2 Kd7 60. Bd1 Kc7 61. Kb5 Kd6 (61... c3 $5 62. Bc2 Kd6 63. Kxa5 Kc5 $11) 62. Kxa5 Kc5 63. Bc2 Bd5 64. Bb1 Bf3 65. Bc2 Bd5 66. Bb1 Bf3 67. Bc2 Bd5 68. Bb1 1/2-1/2

[Event "Portuguese-ch U14-20 2022"]
[Site "Fatima"]
[Date "2022.04.13"]
[Round "6.27"]
[White "Camacho, Filipa Fernandes Bri"]
[Black "Korotkyi, Daniyil"]
[Result "0-1"]
[ECO "A04"]
[WhiteElo "1467"]
[BlackElo "1726"]
[Annotator "NA RC"]
[PlyCount "102"]
[EventDate "2022.04.10"]
[EventType "swiss"]
[EventCountry "POR"]
[SourceTitle "playchess.com"]
[Source "ChessBase"]
[SourceQuality "1"]
[TimeControl "5400+30"]

1. Nf3 {[%emt 0:00:12]} Nc6 {[%emt 0:00:36]} 2. g3 {[%emt 0:00:16]} g6 {[%emt 0:00:34]} 3. Bg2 {[%emt 0:00:17]} Bg7 {[%emt 0:00:13]} 4. O-O {[%emt 0:00:38]} e5 {[%emt 0:01:05]} 5. d3 {[%emt 0:00:57]} Nge7 {[%emt 0:00:44]} 6. c4 {[%emt 0:01:04]} O-O {[%emt 0:00:40]} 7. Nc3 {[%emt 0:02:05]} d6 {[%emt 0:01:50]} 8. Rb1 {[%emt 0:03:12]} a5 {[%emt 0:00:42]} 9. a3 {[%emt 0:00:18]} f5 {[%emt 0:00:47]} 10. Bd2 {[%emt 0:06:11]} h6 {[%emt 0:07:11]} 11. e3 {[%emt 0:10:24]} g5 {[%emt 0:02:27]} 12. h3 {[%emt 0:09:50]} Be6 {[%emt 0:02:52]} 13. Qe2 {[%emt 0:01:14]} Qd7 {[%emt 0:04:43]} 14. h4 {[%emt 0:05:29]} g4 {[%emt 0:16:35]} 15. Nh2 {[%emt 0:00:24]} h5 {[%emt 0:00:23]} 16. Rbe1 {[%emt 0:02:48]} Ng6 {[%emt 0:02:57]} 17. f3 {[%emt 0:07:15]} f4 {[%emt 0:38:05]} 18. exf4 {[%emt 0:09:10]} Nd4 {[%emt 0:00:07]} 19. Qe4 {[%emt 0:00:38]} Bf5 {[%emt 0:00:06]} 20. Qd5+ {[%emt 0:01:58]} Kh7 {[%emt 0:00:06]} 21. fxe5 {[%emt 0:01:12]} Nxe5 {[%emt 0:00:49]} 22. Ne4 {[%emt 0:07:00]} Nxd3 {[%emt 0:09:41]} 23. Ng5+ {[%emt 0:00:34]} Kh8 {[%emt 0:00:16]} 24. Ne6 {[%emt 0:09:03]} Nxe6 {[%emt 0:01:21]} 25. fxg4 {[%emt 0:00:38]} c6 {[%emt 0:02:50]} 26. Qf3 {[%emt 0:00:45]} Nxe1 {[%emt 0:00:38]} 27. Rxe1 {[%emt 0:00:05]} Bxg4 {[%emt 0:01:25]} 28. Qe4 {[%emt 0:03:40]} Nc5 {[%emt 0:01:24]} 29. Qg6 {[%emt 0:01:30]} Qf5 {[%emt 0:01:17]} 30. Qxd6 {[%emt 0:02:41]} Nd3 {[%emt 0:00:21]} 31. Rf1 {[%emt 0:01:04]} Qc5+ {[%emt 0:00:42]} 32. Qxc5 {[%emt 0:00:05]} Nxc5 {[%emt 0:00:09]} 33. Re1 {[%emt 0:01:34]} Nd3 {[%emt 0:00:50]} 34. Re7 {[%emt 0:00:25]} Bd4+ {[%emt 0:00:48]} 35. Be3 {[%emt 0:00:37]} Bxe3+ {[%emt 0:00:43]} 36. Rxe3 {[%emt 0:00:06]} Nc5 {[%emt 0:00:48]} 37. Re5 {[%emt 0:00:42]} Nd7 {[%emt 0:00:58]} 38. Re7 {[%emt 0:00:22]} Rae8 {[%emt 0:00:26]} 39. Re4 {[%emt 0:00:32]} Rxe4 {[%emt 0:00:14]} 40. Bxe4 {[%emt 0:00:04]} Nf6 {[%emt 0:00:06]} 41. Bd3 {[%emt 0:00:21]} Rd8 {[%emt 0:00:08]} 42. Bf1 {[%emt 0:01:35]} Rd1 {[%emt 0:00:16]} 43. b4 {[%emt 0:00:17]} axb4 {[%emt 0:00:09]} 44. axb4 {[%emt 0:00:06]} Ne4 {[%emt 0:00:19]} 45. Nxg4 {[%emt 0:00:16]} hxg4 {[%emt 0:00:10]} 46. Kg2 {[%emt 0:01:22]} Rd2+ {[%emt 0:00:17]} 47. Kg1 {[%emt 0:00:05]} Nxg3 {[%emt 0:00:17]} 48. Bg2 {[%emt 0:00:10]} Ne2+ {[%emt 0:00:50]} 49. Kf1 {[%emt 0:01:07]} Nf4 {[%emt 0:00:21]} 50. Be4 {[%emt 0:00:25]} g3 {[%emt 0:00:18]} 51. b5 {[%emt 0:00:30]} Rd1# {[%emt 0:00:15]} 0-1

[Event "Portuguese-ch U14-20 2022"]
[Site "Fatima"]
[Date "2022.04.13"]
[Round "6.28"]
[White "Gaspar, Bernardo"]
[Black "Veleirinho, Tomas Carvalho"]
[Result "0-1"]
[ECO "A01"]
[WhiteElo "1365"]
[BlackElo "1641"]
[Annotator "NA RC"]
[PlyCount "128"]
[EventDate "2022.04.10"]
[EventType "swiss"]
[EventCountry "POR"]
[SourceTitle "playchess.com"]
[Source "ChessBase"]
[SourceQuality "1"]
[TimeControl "5400+30"]

1. b3 {[%emt 0:00:04]} d5 {[%emt 0:00:28]} 2. Bb2 {[%emt 0:00:08]} Nf6 {[%emt 0:00:36]} 3. e3 {[%emt 0:00:15]} e6 {[%emt 0:01:07]} 4. f4 {[%emt 0:00:39]} Be7 {[%emt 0:02:10]} 5. Nf3 {[%emt 0:01:48]} O-O {[%emt 0:07:07]} 6. Nc3 {[%emt 0:05:09]} c5 {[%emt 0:02:28]} 7. Ne2 {[%emt 0:10:35]} Nc6 {[%emt 0:12:10]} 8. Ng3 {[%emt 0:12:51]} b6 {[%emt 0:08:07]} 9. Bd3 {[%emt 0:20:10]} Bb7 {[%emt 0:04:54]} 10. O-O {[%emt 0:03:39]} Rc8 {[%emt 0:12:17]} 11. Ne5 {[%emt 0:07:54]} Nxe5 {[%emt 0:20:38]} 12. fxe5 {[%emt 0:01:33]} Ne4 {[%emt 0:04:43]} 13. Qg4 {[%emt 0:14:31]} Nxg3 {[%emt 0:02:09]} 14. Qxg3 {[%emt 0:04:31]} c4 {[%emt 0:01:49]} 15. Be2 {[%emt 0:01:30]} cxb3 {[%emt 0:01:57]} 16. cxb3 {[%emt 0:01:17]} Bb4 {[%emt 0:01:35]} 17. Bc1 {[%emt 0:02:59]} d4 {[%emt 0:01:27]} 18. Qf4 {[%emt 0:03:00]} Bc5 {[%emt 0:06:15]} 19. Bf3 {[%emt 0:01:56]} Bxf3 {[%emt 0:01:07]} 20. Qxf3 {[%emt 0:00:49]} dxe3 {[%emt 0:00:42]} 21. dxe3 {[%emt 0:00:37]} Qg5 {[%emt 0:01:55]} 22. Qf4 {[%emt 0:01:53]} Qxf4 {[%emt 0:00:19]} 23. Rxf4 {[%emt 0:00:04]} Rfd8 {[%emt 0:00:39]} 24. a3 {[%emt 0:01:24]} Rd3 {[%emt 0:00:59]} 25. b4 {[%emt 0:01:29]} Bxe3+ {[%emt 0:00:18]} 26. Bxe3 {[%emt 0:00:03]} Rxe3 {[%emt 0:00:07]} 27. Rd4 {[%emt 0:00:12]} Rxe5 {[%emt 0:00:59]} 28. Rad1 {[%emt 0:00:17]} g6 {[%emt 0:00:18]} 29. Rd7 {[%emt 0:00:16]} a5 {[%emt 0:00:21]} 30. bxa5 {[%emt 0:00:22]} Rxa5 {[%emt 0:00:41]} 31. Rb7 {[%emt 0:00:25]} Rxa3 {[%emt 0:00:18]} 32. Rf1 {[%emt 0:01:07]} Rf8 {[%emt 0:00:37]} 33. Rxb6 {[%emt 0:00:05]} Ra7 {[%emt 0:00:32]} 34. h3 {[%emt 0:00:22]} Rc8 {[%emt 0:00:17]} 35. Rb2 {[%emt 0:00:27]} Kg7 {[%emt 0:01:08]} 36. Rff2 {[%emt 0:00:22]} Rc1+ {[%emt 0:00:22]} 37. Kh2 {[%emt 0:00:02]} Rd7 {[%emt 0:00:11]} 38. Rbe2 {[%emt 0:00:19]} Rcd1 {[%emt 0:00:16]} 39. Ra2 {[%emt 0:00:27]} f5 {[%emt 0:00:43]} 40. Rfe2 {[%emt 0:00:16]} Kf6 {[%emt 0:00:15]} 41. Rab2 {[%emt 0:00:41]} e5 {[%emt 0:00:44]} 42. Rb6+ {[%emt 0:00:21]} R1d6 {[%emt 0:00:08]} 43. Rb5 {[%emt 0:00:18]} e4 {[%emt 0:00:22]} 44. Rbb2 {[%emt 0:01:24]} h6 {[%emt 0:01:22]} 45. Kg3 {[%emt 0:00:33]} g5 {[%emt 0:00:55]} 46. Kf2 {[%emt 0:00:31]} Ke5 {[%emt 0:00:58]} 47. Rb5+ {[%emt 0:00:47]} Rd5 {[%emt 0:00:11]} 48. Rb6 {[%emt 0:00:07]} R7d6 {[%emt 0:00:17]} 49. Rb8 {[%emt 0:00:18]} Rd2 {[%emt 0:01:18]} 50. Re8+ {[%emt 0:00:56]} Kf6 {[%emt 0:00:11]} 51. Rf8+ {[%emt 0:00:11]} Kg6 {[%emt 0:00:05]} 52. Rg8+ {[%emt 0:01:22]} Kf7 {[%emt 0:02:07]} 53. Rh8 {[%emt 0:00:25]} Rxe2+ {[%emt 0:00:45]} 54. Kxe2 {[%emt 0:00:01]} f4 {[%emt 0:00:42]} 55. Rh7+ {[%emt 0:00:17]} Kg6 {[%emt 0:00:05]} 56. Re7 {[%emt 0:00:05]} e3 {[%emt 0:00:13]} 57. g3 {[%emt 0:01:17]} Rd2+ {[%emt 0:00:18]} 58. Ke1 {[%emt 0:01:10]} Rg2 {[%emt 0:01:53]} 59. gxf4 {[%emt 0:00:11]} gxf4 {[%emt 0:00:17]} 60. Re8 {[%emt 0:00:01]} Kf5 {[%emt 0:00:11]} 61. Rf8+ {[%emt 0:00:10]} Ke4 {[%emt 0:00:16]} 62. Ra8 {[%emt 0:00:49]} Kf3 {[%emt 0:00:15]} 63. Kf1 {[%emt 0:00:29]} e2+ {[%emt 0:00:11]} 64. Ke1 {[%emt 0:00:02]} Rg1+ {[%emt 0:00:10]} 0-1

[Event "Portuguese-ch U14-20 2022"]
[Site "Fatima"]
[Date "2022.04.13"]
[Round "6.29"]
[White "Afonso, Joao Pedro"]
[Black "Nalivaiko, Maksim"]
[Result "1-0"]
[ECO "C64"]
[WhiteElo "1501"]
[BlackElo "1439"]
[Annotator "NA RC"]
[PlyCount "83"]
[EventDate "2022.04.10"]
[EventType "swiss"]
[EventCountry "POR"]
[SourceTitle "playchess.com"]
[Source "ChessBase"]
[SourceQuality "1"]
[TimeControl "5400+30"]

1. e4 {[%emt 0:01:29]} e5 {[%emt 0:00:05]} 2. Nf3 {[%emt 0:00:03]} Nc6 {[%emt 0:00:05]} 3. Bb5 {[%emt 0:00:05]} Bc5 {[%emt 0:00:15]} 4. c3 {[%emt 0:00:04]} Nge7 {[%emt 0:01:36]} 5. O-O {[%emt 0:01:37]} O-O {[%emt 0:00:55]} 6. d4 {[%emt 0:00:22]} exd4 {[%emt 0:00:28]} 7. cxd4 {[%emt 0:00:05]} Bb6 {[%emt 0:01:07]} 8. d5 {[%emt 0:01:09]} a6 {[%emt 0:01:10]} 9. Ba4 {[%emt 0:02:08]} Na7 {[%emt 0:00:35]} 10. Nc3 {[%emt 0:05:48]} Ng6 {[%emt 0:00:34]} 11. e5 {[%emt 0:03:44]} d6 {[%emt 0:01:18]} 12. Bg5 {[%emt 0:00:33]} f6 {[%emt 0:01:15]} 13. exf6 {[%emt 0:00:23]} gxf6 {[%emt 0:00:10]} 14. Bh6 {[%emt 0:00:19]} Rf7 {[%emt 0:00:32]} 15. Bc2 {[%emt 0:15:54]} Bd7 {[%emt 0:00:26]} 16. a4 {[%emt 0:11:06]} Bc5 {[%emt 0:02:19]} 17. Ne4 {[%emt 0:01:19]} Bb4 {[%emt 0:00:44]} 18. Nd4 {[%emt 0:07:11]} Qc8 {[%emt 0:03:10]} 19. Qf3 {[%emt 0:05:05]} Kh8 {[%emt 0:08:26]} 20. Ng5 {[%emt 0:01:35]} Qe8 {[%emt 0:05:10]} 21. Nxf7+ {[%emt 0:04:13]} Qxf7 {[%emt 0:00:35]} 22. Ne6 {[%emt 0:06:59]} Ne5 {[%emt 0:09:35]} 23. Qe4 {[%emt 0:00:30]} Bc5 {[%emt 0:02:40]} 24. Bg7+ {[%emt 0:00:10]} Qxg7 {[%emt 0:00:34]} 25. Nxg7 {[%emt 0:00:08]} Kxg7 {[%emt 0:00:02]} 26. Qxh7+ {[%emt 0:00:10]} Kf8 {[%emt 0:00:41]} 27. Qh8+ {[%emt 0:00:13]} Kf7 {[%emt 0:01:35]} 28. Qxa8 {[%emt 0:00:33]} Bc8 {[%emt 0:00:04]} 29. b4 {[%emt 0:01:19]} Bxb4 {[%emt 0:00:25]} 30. Qxa7 {[%emt 0:00:12]} Bc5 {[%emt 0:00:36]} 31. Qb8 {[%emt 0:00:06]} Bd7 {[%emt 0:00:47]} 32. Qxc7 {[%emt 0:00:39]} Kf8 {[%emt 0:00:48]} 33. Rae1 {[%emt 0:00:43]} Be8 {[%emt 0:00:50]} 34. Rxe5 {[%emt 0:00:14]} fxe5 {[%emt 0:00:56]} 35. g4 {[%emt 0:00:20]} b5 {[%emt 0:00:54]} 36. g5 {[%emt 0:00:22]} bxa4 {[%emt 0:00:10]} 37. g6 {[%emt 0:00:05]} a3 {[%emt 0:00:23]} 38. g7+ {[%emt 0:00:12]} Kg8 {[%emt 0:00:20]} 39. Qe7 {[%emt 0:00:02]} Bxf2+ {[%emt 0:00:46]} 40. Kh1 {[%emt 0:00:17]} Bg6 {[%emt 0:00:32]} 41. Qf8+ {[%emt 0:00:07]} Kh7 {[%emt 0:00:23]} 42. Qh8# 1-0

[Event "Portuguese-ch U14-20 2022"]
[Site "Fatima"]
[Date "2022.04.13"]
[Round "6.30"]
[White "Marques, Afonso Mendes Pereir"]
[Black "Bento, David"]
[Result "1-0"]
[ECO "B56"]
[WhiteElo "1550"]
[BlackElo "1282"]
[Annotator "NA RC"]
[PlyCount "107"]
[EventDate "2022.04.10"]
[EventType "swiss"]
[EventCountry "POR"]
[SourceTitle "playchess.com"]
[Source "ChessBase"]
[SourceQuality "1"]
[TimeControl "5400+30"]

1. e4 c5 2. Nf3 Nc6 3. d4 cxd4 4. Nxd4 d6 5. Nc3 Nf6 6. f3 g6 7. Be3 Bg7 8. Bc4 Qb6 9. Bb5 O-O 10. Nf5 Qc7 11. Nxg7 Kxg7 12. Qd2 Rd8 13. O-O-O h5 14. h3 Ne5 15. Bd4 Be6 16. Nd5 Bxd5 17. exd5 Kg8 18. f4 a6 19. fxe5 dxe5 20. Qc3 Qxc3 21. Bxc3 axb5 22. a3 Nxd5 23. Bxe5 b4 24. g4 f6 25. Bg3 hxg4 26. hxg4 bxa3 27. Kb1 axb2 28. Kxb2 g5 29. Rhe1 Kf7 30. Rd3 Nf4 31. Rb3 Rd7 32. Re4 e5 33. Reb4 Ra6 34. Rxb7 Rxb7 35. Rxb7+ Ke6 36. c4 e4 37. Rb3 Rc6 38. Bxf4 gxf4 39. Kc3 Ke5 40. Rb5+ Ke6 41. Rf5 Rd6 42. Rxf4 Rd3+ 43. Kc2 Rd6 44. Rxe4+ Kf7 45. Kc3 Kg6 46. c5 Rd1 47. Kb4 Rc1 48. Rc4 Rb1+ 49. Ka5 f5 50. gxf5+ Kxf5 51. c6 Rb8 52. c7 Rc8 53. Kb6 Ke6 54. Kb7 1-0

[Event "Portuguese-ch U14-20 2022"]
[Site "Fatima"]
[Date "2022.04.13"]
[Round "6.31"]
[White "Almeida, Joao Pedro Dias"]
[Black "Azevedo Junior, Joao Nunes"]
[Result "1-0"]
[ECO "D02"]
[WhiteElo "1508"]
[BlackElo "1831"]
[Annotator "NA RC"]
[PlyCount "91"]
[EventDate "2022.04.10"]
[EventType "swiss"]
[EventCountry "POR"]
[SourceTitle "playchess.com"]
[Source "ChessBase"]
[SourceQuality "1"]
[TimeControl "5400+30"]

1. d4 {[%emt 0:00:01]} d5 {[%emt 0:00:05]} 2. Nf3 {[%emt 0:00:02]} Nf6 {[%emt 0:00:13]} 3. g3 {[%emt 0:00:06]} e6 {[%emt 0:00:27]} 4. Bg2 {[%emt 0:00:04]} Bd6 {[%emt 0:00:26]} 5. c4 {[%emt 0:00:10]} c6 {[%emt 0:00:06]} 6. Nc3 {[%emt 0:00:19]} Nbd7 {[%emt 0:00:14]} 7. O-O {[%emt 0:00:25]} h6 {[%emt 0:00:05]} 8. c5 {[%emt 0:00:26]} Bc7 {[%emt 0:00:06]} 9. Re1 {[%emt 0:02:47]} O-O {[%emt 0:04:45]} 10. e4 {[%emt 0:03:26]} dxe4 {[%emt 0:00:16]} 11. Nd2 {[%emt 0:01:10]} e5 {[%emt 0:19:50]} 12. Ndxe4 {[%emt 0:03:46]} exd4 {[%emt 0:01:22]} 13. Qxd4 {[%emt 0:00:50]} Be5 {[%emt 0:01:30]} 14. Qd3 {[%emt 0:00:59]} Nxe4 {[%emt 0:01:51]} 15. Nxe4 {[%emt 0:01:00]} Nf6 {[%emt 0:02:20]} 16. Nd6 {[%emt 0:04:47]} Nd7 {[%emt 0:05:26]} 17. Qc2 {[%emt 0:06:19]} Qf6 {[%emt 0:05:00]} 18. Ne4 {[%emt 0:05:43]} Qg6 {[%emt 0:00:54]} 19. f4 {[%emt 0:01:48]} Bd4+ {[%emt 0:02:32]} 20. Be3 {[%emt 0:00:15]} Bxe3+ {[%emt 0:00:05]} 21. Rxe3 {[%emt 0:00:04]} Nf6 {[%emt 0:00:27]} 22. Qb3 {[%emt 0:04:29]} Nd5 {[%emt 0:06:57]} 23. Ree1 {[%emt 0:01:44]} Rb8 {[%emt 0:04:43]} (23... b6 $11) 24. Nd6 {[%emt 0:03:02]} b6 {[%emt 0:14:07]} 25. Bxd5 {[%emt 0:01:13]} cxd5 {[%emt 0:00:07]} 26. Nxc8 {[%emt 0:01:08]} Rfxc8 {[%emt 0:00:10]} 27. Qxd5 {[%emt 0:02:05]} Rxc5 {[%emt 0:00:20]} 28. Qd7 {[%emt 0:01:10] [#]} (28. Qf3 $11) 28... a5 {[%emt 0:01:42]} (28... Rc2 $1 $17 29. Rab1 b5) 29. Rac1 {[%emt 0:02:05]} Qf5 {[%emt 0:02:43]} 30. Qxf5 {[%emt 0:04:02]} Rxf5 {[%emt 0:00:04]} 31. Kf2 {[%emt 0:01:35]} Kf8 {[%emt 0:00:16]} 32. Rc7 {[%emt 0:00:34]} Re8 {[%emt 0:02:31]} 33. Rd1 {[%emt 0:00:13]} Rc5 {[%emt 0:01:20]} 34. Rb7 {[%emt 0:00:47]} Rc2+ {[%emt 0:00:21]} 35. Kf3 {[%emt 0:00:17]} Rxb2 {[%emt 0:00:05]} 36. Rdd7 {[%emt 0:00:02]} Rc8 $2 {[%emt 0:02:39]} (36... f5 $16) 37. Rxf7+ {[%emt 0:00:09]} Ke8 {[%emt 0:00:13]} 38. Rxg7 {[%emt 0:00:08]} Kf8 {[%emt 0:00:36]} 39. Rgf7+ $2 {[%emt 0:01:43]} (39. Rbf7+ Ke8 40. Rh7 Rc3+ 41. Kg4 h5+ 42. Kg5) 39... Kg8 $18 {[%emt 0:00:41]} 40. f5 {[%emt 0:00:18]} Rb8 {[%emt 0:04:13]} 41. Rg7+ {[%emt 0:00:19]} Kf8 {[%emt 0:00:12]} 42. Rbf7+ {[%emt 0:00:53]} Ke8 {[%emt 0:00:21]} 43. Re7+ {[%emt 0:00:35]} Kf8 {[%emt 0:00:40]} 44. Rgf7+ {[%emt 0:01:07]} Kg8 {[%emt 0:00:03]} 45. f6 {[%emt 0:00:06]} Re8 {[%emt 0:03:08]} 46. Rg7+ {[%emt 0:01:18]} 1-0

[Event "Portuguese-ch U14-20 2022"]
[Site "Fatima"]
[Date "2022.04.13"]
[Round "6.32"]
[White "Torres Rodero, Francisco"]
[Black "Areal, Maria Beatriz Moura"]
[Result "1/2-1/2"]
[ECO "B34"]
[WhiteElo "2048"]
[BlackElo "1343"]
[Annotator "TA"]
[PlyCount "103"]
[EventDate "2022.04.10"]
[EventType "swiss"]
[EventCountry "POR"]
[SourceTitle "playchess.com"]
[Source "ChessBase"]
[SourceQuality "1"]
[TimeControl "5400+30"]

{[%evp 14,103,4,-20,-20,-10,-19,-120,0,-5,16,10,17,25,25,0,19,19,21,15,14,-80,-77,-118,-106,-111,-112,-870,-108,-210,-187,-170,-81,-114,-84,-90,-75,-164,-93,-100,-62,-147,-161,-156,0,0,0,0,0,0,0,0,0,0,0,-9,0,0,0,0,0,0,0,0,0,0,0,0,0,0,0,0,0,0,0,0,0,0,0,0,0,0,0,0,0,0,0,0,0,0,0,0]} 1. e4 {[%emt 0:00:01]} c5 {[%emt 0:00:07]} 2. Nf3 {[%emt 0:00:06]} Nc6 {[%emt 0:00:15]} 3. d4 {[%emt 0:00:05]} cxd4 {[%emt 0:00:25]} 4. Nxd4 {[%emt 0:00:09]} g6 {[%emt 0:00:35]} 5. Nc3 {[%emt 0:00:21]} Bg7 {[%emt 0:00:07]} 6. Be3 {[%emt 0:00:09]} Nf6 {[%emt 0:00:41]} 7. Be2 {[%emt 0:01:07]} O-O {[%emt 0:01:03]} 8. Qd2 {[%emt 0:00:53]} d5 {[%emt 0:03:12] B34: Sicilian: Accelerated Dragon with 5 Nc3: sidelines.} 9. exd5 {[%emt 0:19:01]} Nxd5 {[%emt 0:11:40]} 10. O-O-O {[%emt 0:03:26]} (10. Nxc6 $11 bxc6 11. Nxd5 Qxd5 12. Qxd5 cxd5 13. O-O-O) 10... Nxc3 {[%emt 0:06:10]} (10... Nxe3 $17 11. fxe3 Nxd4 12. exd4 Be6) 11. Qxc3 $11 {[%emt 0:02:39] [#]} Nxd4 $146 {[%emt 0:05:03]} (11... Qe8 $5 {[%cal Rc8f5]}) ({Predecessor:} 11... Qe8 12. Qa3 a6 13. Kb1 Nxd4 14. Bxd4 Bxd4 15. Rxd4 Bf5 16. g4 Bxc2+ 17. Ka1 e5 {0-1 (32) Stankiewicz,E (1931)-Rutkowski,E (1832) Zawoja Osrodek 2011}) 12. Bxd4 {[%emt 0:04:05]} Bxd4 {[%emt 0:00:19]} 13. Rxd4 {[%emt 0:02:04]} Qb6 {[%emt 0:02:00]} 14. Bc4 {[%emt 0:03:13]} Qc6 {[%emt 0:11:02]} 15. f3 {[%emt 0:06:47]} Be6 {[%emt 0:07:02]} 16. Bxe6 {[%emt 0:06:17]} Qxe6 {[%emt 0:00:10]} 17. Re1 {[%emt 0:09:50]} (17. Qb3 $11 {remains equal.}) 17... Qxa2 $17 {[%emt 0:05:14]} 18. Rxe7 {[%emt 0:05:20]} Qa1+ {[%emt 0:02:01]} 19. Kd2 {[%emt 0:03:37][%cal Bc1d2,Bd2c3,Bc3b3,Bb3b4][%mdl 32]} Qg1 {[%emt 0:02:54][%csl LRg2,LRh2]} 20. Rg4 $2 {[%emt 0:06:21][%mdl 8192]} (20. g4 $17) 20... Qxh2 $2 {[%emt 0:07:58]} (20... Rfd8+ $19 {and Black stays clearly on top.} 21. Ke2 Rac8) 21. Qf6 {[%emt 0:06:49]} (21. Qe3 $17) 21... Rad8+ {[%emt 0:07:41]} 22. Kc3 {[%emt 0:01:58]} Qb8 {[%emt 0:04:26]} (22... Rd6 $19 {is more deadly.} 23. Qg5 Rb6) 23. Rge4 {[%emt 0:08:15]} Rc8+ {[%emt 0:04:40]} 24. Kb3 {[%emt 0:00:59]} Rc6 {[%emt 0:01:20]} 25. Qh4 {[%emt 0:02:39]} (25. Qe5 $17 {was called for.}) 25... Rb6+ {[%emt 0:01:41]} (25... Qd8 $19 {Hoping for ...Qd5+.} 26. Rd4 Rb6+ 27. Kc3 (27. Ka2 Ra6+ 28. Kb3 Qa5 $17) 27... Rd6 28. Rxd6 Qxd6) 26. Rb4 {[%emt 0:02:21]} Qd6 {[%emt 0:02:30]} 27. Rxb6 {[%emt 0:00:52]} ({Better is} 27. Qe4 $1 $15) 27... Qxb6+ {[%emt 0:00:01]} 28. Qb4 {[%emt 0:01:14] [#]} Qxb4+ {[%emt 0:01:00]} ({Black should play} 28... Qf2 $1 $17 29. Rxb7 Qxg2) 29. Kxb4 {[%emt 0:00:05][%mdl 4096] Endgame KR-KR. The position is equal.} Rb8 {[%emt 0:00:07]} 30. c4 {[%emt 0:01:23][%cal Bc2c4,Bc4c5][%mdl 32]} Kg7 {[%emt 0:00:43]} 31. Kb5 {[%emt 0:00:51]} Kf6 {[%emt 0:00:16]} 32. Rc7 {[%emt 0:00:18]} h5 {[%emt 0:01:01]} 33. b4 {[%emt 0:00:46]} Ke6 {[%emt 0:01:44]} 34. c5 {[%emt 0:00:53]} f6 {[%emt 0:00:37]} 35. Ka5 {[%emt 0:00:35]} g5 {[%emt 0:01:28]} 36. b5 {[%emt 0:00:40]} g4 {[%emt 0:03:54]} 37. fxg4 {[%emt 0:00:36]} hxg4 {[%emt 0:00:02]} 38. c6 {[%emt 0:00:17]} bxc6 {[%emt 0:01:57]} 39. Rxc6+ {[%emt 0:00:20]} Ke5 {[%emt 0:00:43] [#] White must now prevent ...Rb7.} 40. Ka6 {[%emt 0:00:54] Against Rb7} f5 {[%emt 0:01:05]} 41. Rc5+ {[%emt 0:00:46]} Kf4 {[%emt 0:00:08]} 42. Kxa7 {[%emt 0:00:23]} Rd8 {[%emt 0:01:01]} 43. Rc2 {[%emt 0:00:27]} Rd1 {[%emt 0:01:20]} 44. b6 {[%emt 0:00:18] Threatens to win with Rc3.} Ra1+ {[%emt 0:00:36]} 45. Kb8 {[%emt 0:00:03] Strongly threatening Rc3.} Rb1 {[%emt 0:00:04]} 46. b7 {[%emt 0:00:08] aiming for Rc3.} Kg3 {[%emt 0:00:30]} 47. Kc7 {[%emt 0:00:29]} f4 {[%emt 0:00:26]} 48. b8=Q {[%emt 0:00:48]} Rxb8 {[%emt 0:00:12]} 49. Kxb8 {[%emt 0:00:05]} f3 {[%emt 0:00:07]} 50. gxf3 {[%emt 0:00:39]} gxf3 {[%emt 0:00:18]} 51. Rc6 {[%emt 0:00:50]} f2 {[%emt 0:01:16]} 52. Rg6+ {[%emt 0:00:12] Whites escaped into a draw.  Weighted Error Value: White=0.40/Black=0.38} 1/2-1/2